bitfinex-derivatives/quotes_SOLF0:USTF0_20250803
["timestamp","ask_amount","ask_price","bid_price","bid_amount"]
[1754210944125,3.39,160.94,160.93,3.4]
[1754210944313,3.39,160.94,160.92,6.2147]
[1754210944517,112.82,160.93,160.92,9.6147]
[1754210946923,116.21,160.93,160.92,9.6147]
[1754210947321,116.21,160.93,160.92,3.4]
[1754210948023,116.21,160.93,160.92,9.6149]
[1754210952825,116.21,160.93,160.92,3.4]
[1754210953021,3.39,160.92,160.9,3.4]
[1754210953631,3.39,160.92,160.89,3.4]
[1754210954125,3.39,160.92,160.9,9.6156]
[1754210954322,3.39,160.92,160.91,3.4]
[1754210955833,3.39,160.92,160.9,3.4]
[1754210956834,3.39,160.91,160.88,9.6163]
[1754210957033,3.39,160.89,160.88,9.6163]
[1754210957231,116.23,160.89,160.88,9.6163]
[1754210957435,116.23,160.89,160.88,3.4]
[1754210959134,119.0561,160.89,160.83,3.4]
[1754210959336,3.39,160.88,160.83,3.4]
[1754210959737,119.0561,160.89,160.86,6.2172]
[1754210960031,3.39,160.88,160.87,3.4]
[1754210960632,9.6065,160.88,160.82,5.22141519]
[1754210960832,3.39,160.87,160.82,3.4]
[1754210961637,3.39,160.88,160.82,3.4]
[1754210961837,3.39,160.88,160.85,6.2175]
[1754210962034,3.39,160.88,160.87,3.4]
[1754210962437,112.84,160.89,160.87,3.4]
[1754210962736,3.39,160.88,160.87,3.4]
[1754210963035,17.47656803,160.95,160.87,3.4]
[1754210963245,116.39,160.94,160.87,3.4]
[1754210963536,3.39,160.93,160.87,3.4]
[1754210963933,3.39,160.93,160.9,6.2153]
[1754210964126,3.39,160.92,160.91,3.4]
[1754210964333,3.39,160.92,160.87,3.4]
[1754210964635,3.39,160.92,160.8,7.077322]
[1754210964636,3.39,160.9,160.88,3.4]
[1754210964936,3.39,160.9,160.89,3.4]
[1754210965835,113.0,160.92,160.89,3.4]
[1754210966337,113.0,160.92,160.91,9.6149]
[1754210966736,116.39,160.92,160.91,9.6149]
[1754210967040,116.39,160.92,160.91,3.4]
[1754210967541,116.39,160.92,160.91,9.6153]
[1754210968034,113.0,160.92,160.91,9.6153]
[1754210972029,3.39,160.94,160.93,6.2145]
[1754210972330,116.49,160.95,160.93,3.42]
[1754210972733,116.49,160.95,160.94,9.6339]
[1754210972937,3.33,160.97,160.94,3.42]
[1754210973743,3.33,160.97,160.95,6.2137]
[1754210973941,3.33,160.96,160.95,6.2137]
[1754210974438,3.33,160.96,160.95,9.6337]
[1754210975050,3.33,160.97,160.96,3.42]
[1754210975348,3.33,160.97,160.95,9.6337]
[1754210976349,3.33,160.97,160.96,3.42]
[1754210976648,3.33,160.97,160.96,9.6333]
[1754210976852,116.49,160.98,160.97,3.42]
[1754210977450,116.49,160.98,160.97,9.633]
[1754210977650,113.16,160.98,160.97,9.633]
[1754210977950,3.33,161.0,160.97,3.42]
[1754210978153,3.33,161.0,160.99,6.2122]
[1754210978356,3.33,161.0,160.99,9.6322]
[1754210982464,116.59,161.01,161.0,9.6318]
[1754210982859,113.26,161.01,161.0,9.6318]
[1754210986157,113.26,161.01,160.98,7.077322]
[1754210986158,3.33,161.02,161.01,9.6314]
[1754210987759,113.22,161.04,161.02,3.42]
[1754210989265,116.55,161.04,161.03,6.2106]
[1754210989463,116.55,161.04,161.03,9.6306]
[1754210990066,3.33,161.04,161.03,9.6306]
[1754210991961,113.24,161.06,161.05,9.6299]
[1754210992468,116.57,161.06,161.05,9.6299]
[1754210992965,13.285022,161.11,161.06,6.2094]
[1754210993165,116.55,161.1,161.07,3.42]
[1754210993367,3.33,161.09,161.07,3.42]
[1754210994263,3.33,161.09,161.06,6.2094]
[1754210994463,3.33,161.09,161.06,9.6294]
[1754210996463,3.33,161.09,161.03,3.42]
[1754210997164,3.33,161.09,161.07,6.2089]
[1754210997364,3.33,161.09,161.07,9.6289]
[1754210998069,3.33,161.09,161.08,6.2087]
[1754210999770,113.22,161.1,161.08,9.6287]
[1754210999970,116.55,161.1,161.09,3.42]
[1754211000160,116.55,161.1,161.09,9.6283]
[1754211001671,116.55,161.1,161.09,6.2083]
[1754211001871,3.24,161.09,160.98,3.36]
[1754211002075,3.24,161.09,161.03,3.36]
[1754211002570,3.24,161.09,161.06,6.2092]
[1754211002770,3.24,161.09,161.03,3.36]
[1754211003462,3.24,161.08,161.05,6.2098]
[1754211003665,3.24,161.06,161.05,6.2098]
[1754211005570,3.24,161.06,161.05,9.5698]
[1754211006376,113.2,161.07,161.06,6.2095]
[1754211006576,116.44,161.07,161.06,9.5695]
[1754211013276,116.44,161.07,161.06,3.36]
[1754211013477,3.24,161.06,161.02,7.077322]
[1754211013779,3.24,161.06,161.03,3.36]
[1754211014875,113.2,161.07,161.05,6.2096]
[1754211015073,113.2,161.07,161.05,9.5696]
[1754211015573,3.24,161.06,161.05,9.5696]
[1754211016679,113.2,161.07,161.06,6.2095]
[1754211016980,7.077322,161.09,161.07,3.36]
[1754211016981,116.3,161.09,161.07,3.36]
[1754211017775,3.24,161.08,161.07,9.5691]
[1754211018079,113.06,161.09,161.08,3.36]
[1754211018677,113.14,161.11,161.08,3.36]
[1754211019179,3.24,161.12,161.1,3.36]
[1754211019374,116.38,161.12,161.1,3.36]
[1754211019881,113.14,161.12,161.1,3.36]
[1754211020070,3.24,161.11,161.1,3.36]
[1754211020977,3.24,161.11,161.09,3.36]
[1754211021175,3.24,161.11,161.08,6.2086]
[1754211021176,3.24,161.11,161.07,3.36]
[1754211021380,9.4478,161.11,161.07,9.5691]
[1754211021582,3.24,161.11,161.07,9.5691]
[1754211021974,3.24,161.07,161.04,6.2099]
[1754211022276,3.24,161.06,161.04,3.36]
[1754211022783,3.24,161.05,161.01,7.077322]
[1754211023281,113.14,161.07,161.04,3.36]
[1754211023481,116.38,161.07,161.04,3.36]
[1754211023675,116.38,161.07,161.06,9.5695]
[1754211023873,116.38,161.07,161.06,6.2095]
[1754211024079,116.38,161.07,161.04,3.36]
[1754211024381,3.24,161.06,161.04,3.36]
[1754211024581,3.24,161.06,161.05,9.5699]
[1754211025078,3.24,161.06,161.05,6.2099]
[1754211025679,3.24,161.06,161.04,9.5702]
[1754211026177,113.14,161.07,161.04,6.2102]
[1754211026482,3.24,161.06,161.05,3.36]
[1754211029685,3.24,161.06,161.05,9.5699]
[1754211032085,7.077322,161.15,161.06,3.26]
[1754211032391,3.44,161.12,161.08,3.26]
[1754211032580,3.44,161.12,161.11,9.4676]
[1754211034092,3.44,161.12,161.11,3.26]
[1754211034990,3.44,161.12,161.1,9.4678]
[1754211035892,113.24,161.13,161.1,6.2078]
[1754211036192,3.44,161.11,161.1,6.2078]
[1754211036696,3.44,161.11,161.1,9.4678]
[1754211037495,113.24,161.13,161.1,9.4678]
[1754211037696,3.44,161.12,161.11,3.26]
[1754211037996,3.44,161.12,161.11,9.4676]
[1754211039499,3.44,161.12,161.11,3.26]
[1754211044496,3.44,161.12,161.09,9.4682]
[1754211044695,113.14,161.11,161.09,9.4682]
[1754211044899,3.44,161.1,161.09,9.4682]
[1754211046005,3.44,161.1,161.07,3.26]
[1754211046200,3.44,161.08,161.02,3.26]
[1754211046394,3.44,161.06,161.02,3.26]
[1754211048191,113.16,161.07,161.05,3.26]
[1754211048392,3.44,161.06,161.05,3.26]
[1754211048903,113.16,161.07,161.05,3.26]
[1754211049098,113.16,161.07,161.03,7.077322]
[1754211049403,3.44,161.06,161.04,3.26]
[1754211050198,3.44,161.06,161.05,6.2099]
[1754211050395,3.44,161.06,161.05,9.4699]
[1754211050591,3.44,161.06,161.05,3.26]
[1754211050903,3.44,161.06,161.04,3.26]
[1754211051605,3.44,161.06,161.05,3.26]
[1754211054206,3.44,161.06,161.05,9.4699]
[1754211063206,113.16,161.07,161.06,6.2095]
[1754211063411,113.16,161.07,161.06,9.6895]
[1754211064004,116.59,161.09,161.08,3.48]
[1754211065109,3.49,161.08,161.07,9.6888]
[1754211066015,3.49,161.08,161.02,5.22141519]
[1754211066016,3.49,161.08,161.04,3.48]
[1754211066609,3.49,161.08,161.06,3.48]
[1754211067417,3.49,161.08,161.07,3.48]
[1754211074425,3.49,161.08,161.07,9.6891]
[1754211074813,117.62371598,161.09,161.08,3.48]
[1754211075519,121.11371598,161.09,161.08,3.48]
[1754211078220,123.83201598,161.09,161.07,3.48]
[1754211078417,3.49,161.08,161.07,3.48]
[1754211083135,3.49,161.08,161.07,9.6891]
[1754211083636,3.49,161.08,161.07,3.48]
[1754211087730,3.49,161.08,161.07,9.6891]
[1754211087936,113.1,161.09,161.07,3.48]
[1754211088136,113.1,161.09,161.06,3.48]
[1754211088334,113.1,161.09,161.08,6.2087]
[1754211088541,113.1,161.09,161.08,9.6887]
[1754211088931,116.59,161.09,161.08,9.6887]
[1754211091840,113.1,161.09,161.08,9.6887]
[1754211092440,116.17,161.1,161.09,6.208]
[1754211093140,116.17,161.1,161.09,9.648]
[1754211094937,116.17,161.1,161.09,3.44]
[1754211096338,116.17,161.1,161.09,9.6483]
[1754211099243,112.92,161.1,161.09,9.6483]
[1754211099442,116.17,161.1,161.09,9.6483]
[1754211100046,116.17,161.1,161.09,3.44]
[1754211102937,116.17,161.1,161.09,9.6483]
[1754211106246,116.17,161.1,161.07,3.44]
[1754211106247,3.25,161.09,161.07,3.44]
[1754211106442,116.11,161.08,161.07,3.44]
[1754211107341,116.11,161.08,161.07,9.6491]
[1754211107743,116.11,161.08,161.07,6.2091]
[1754211108048,116.11,161.08,161.07,9.6491]
[1754211108648,117.38371598,161.08,161.03,9.75259875]
[1754211108849,3.25,161.07,161.03,7.96371598]
[1754211109048,3.25,161.07,161.04,3.44]
[1754211109354,3.25,161.07,161.05,6.2095]
[1754211109652,3.25,161.07,161.06,3.44]
[1754211110552,3.25,161.07,161.06,9.6495]
[1754211112452,3.25,161.07,161.06,6.2095]
[1754211112753,3.25,161.1,161.07,9.6491]
[1754211113059,112.86,161.09,161.08,3.44]
[1754211113744,3.25,161.1,161.09,6.2083]
[1754211113942,116.11,161.1,161.09,9.6483]
[1754211114252,3.25,161.1,161.09,9.6483]
[1754211114448,112.86,161.11,161.1,9.648]
[1754211114643,116.11,161.11,161.1,9.648]
[1754211125563,112.86,161.11,161.1,9.648]
[1754211125955,112.86,161.11,161.1,14.17171598]
[1754211126865,3.31,161.12,161.11,6.2076]
[1754211127258,3.31,161.12,161.11,9.6976]
[1754211127453,112.84,161.13,161.12,6.2072]
[1754211127663,3.31,161.17,161.13,3.49]
[1754211127861,3.31,161.17,161.16,3.49]
[1754211128162,3.31,161.17,161.16,9.6956]
[1754211130562,3.31,161.2,161.17,3.49]
[1754211130768,116.13,161.2,161.18,3.49]
[1754211131358,3.31,161.26,161.2,3.49]
[1754211131558,3.31,161.26,161.11,6.94861874]
[1754211131559,417.22,161.27,161.23,4.52371598]
[1754211131761,3.31,161.25,161.23,4.52371598]
[1754211131968,3.31,161.25,161.24,9.6923]
[1754211132374,116.21,161.26,161.24,3.49]
[1754211132583,3.31,161.26,161.25,9.6922]
[1754211136572,3.31,161.26,161.24,3.49]
[1754211137285,3.31,161.26,161.25,3.49]
[1754211139387,3.31,161.26,161.25,9.6922]
[1754211140281,3.31,161.26,161.24,6.2026]
[1754211140982,3.31,161.26,161.24,3.49]
[1754211141681,3.31,161.26,161.24,9.6925]
[1754211142180,3.31,161.26,161.24,3.49]
[1754211142985,3.31,161.26,161.23,3.49]
[1754211145286,3.31,161.26,161.24,3.49]
[1754211145590,3.31,161.26,161.2,7.05126189]
[1754211145591,3.31,161.26,161.25,3.49]
[1754211147294,3.31,161.26,161.25,9.6922]
[1754211152290,7.05126189,161.3,161.22,7.05126189]
[1754211152492,3.47,161.33,161.27,3.33]
[1754211152693,3.47,161.33,161.28,7.05126189]
[1754211152888,3.47,161.33,161.32,6.1996]
[1754211153088,3.47,161.33,161.32,9.5296]
[1754211154289,274.98741781,161.34,161.33,6.1992]
[1754211154488,274.98741781,161.34,161.28,7.05126189]
[1754211154489,274.98741781,161.34,161.29,3.33]
[1754211154694,3.47,161.33,161.29,3.33]
[1754211155799,3.47,161.33,161.31,6.1997]
[1754211156000,3.47,161.33,161.31,9.5297]
[1754211156202,3.47,161.33,161.31,3.33]
[1754211156500,271.51741781,161.34,161.32,3.33]
[1754211156696,112.78,161.34,161.33,6.1992]
[1754211156896,112.78,161.34,161.33,9.5292]
[1754211160093,3.47,161.36,161.35,9.5284]
[1754211162404,112.84,161.37,161.36,6.198]
[1754211162599,116.31,161.37,161.36,9.528]
[1754211162903,112.84,161.37,161.36,9.528]
[1754211163492,112.86,161.4,161.33,3.33]
[1754211163702,3.47,161.39,161.34,7.05126189]
[1754211163904,3.47,161.38,161.35,3.33]
[1754211164305,3.47,161.38,161.37,9.5274]
[1754211165397,3.47,161.38,161.37,3.33]
[1754211166007,3.47,161.38,161.37,9.5276]
[1754211170100,3.47,161.38,161.37,3.33]
[1754211172011,3.47,161.38,161.37,9.5276]
[1754211176012,3.47,161.38,161.36,6.1979]
[1754211176318,3.47,161.38,161.32,7.05126189]
[1754211176613,3.47,161.38,161.37,3.33]
[1754211177214,3.47,161.38,161.37,9.5276]
[1754211180512,112.72,161.4,161.37,3.33]
[1754211180713,116.19,161.4,161.37,3.33]
[1754211181010,116.19,161.4,161.39,6.1969]
[1754211181309,116.19,161.4,161.39,9.5269]
[1754211183016,3.3,161.42,161.41,9.4961]
[1754211184812,3.3,161.42,161.41,6.1961]
[1754211185415,3.3,161.42,161.41,9.4961]
[1754211186416,112.72,161.43,161.42,6.1957]
[1754211186808,112.72,161.43,161.41,3.3]
[1754211187123,3.3,161.42,161.41,9.4961]
[1754211189123,3.3,161.42,161.41,3.3]
[1754211189322,3.3,161.42,161.36,7.05126189]
[1754211189627,3.3,161.42,161.4,3.3]
[1754211190726,3.3,161.42,161.41,3.3]
[1754211193724,3.3,161.42,161.4,6.1964]
[1754211194322,3.3,161.42,161.4,9.4964]
[1754211195221,3.3,161.42,161.4,3.3]
[1754211195521,3.3,161.41,161.39,3.3]
[1754211195824,115.96,161.4,161.39,3.3]
[1754211196732,115.96,161.4,161.39,9.4969]
[1754211197233,115.96,161.4,161.39,3.3]
[1754211198630,3.3,161.39,161.38,6.1971]
[1754211199229,3.3,161.39,161.38,9.4971]
[1754211211334,3.3,161.39,161.38,3.3]
[1754211212041,7.85595895,161.39,161.36,6.198]
[1754211212242,4.50595895,161.39,161.36,9.608]
[1754211212442,3.35,161.38,161.37,3.41]
[1754211212740,3.35,161.38,161.34,6.1985]
[1754211212939,117.16595895,161.37,161.34,9.6085]
[1754211213136,117.16595895,161.37,161.33,6.199]
[1754211213342,3.35,161.35,161.34,3.41]
[1754211214940,3.35,161.35,161.32,3.41]
[1754211215239,3.35,161.33,161.29,5.21751422]
[1754211215744,3.35,161.33,161.3,3.41]
[1754211216146,3.35,161.33,161.32,9.6093]
[1754211216835,3.35,161.33,161.32,3.41]
[1754211217543,3.35,161.33,161.32,9.6096]
[1754211217942,3.35,161.33,161.32,3.41]
[1754211220347,116.01,161.34,161.33,3.41]
[1754211221548,112.66,161.34,161.33,9.6092]
[1754211221742,112.68,161.35,161.33,3.41]
[1754211221937,7.04538656,161.4,161.33,3.41]
[1754211222243,3.35,161.38,161.34,3.41]
[1754211222441,112.68,161.37,161.34,3.41]
[1754211222642,116.03,161.37,161.34,3.41]
[1754211223348,116.03,161.37,161.36,6.1978]
[1754211223549,116.03,161.37,161.36,9.6078]
[1754211223945,116.03,161.37,161.36,3.41]
[1754211226151,116.03,161.37,161.36,9.608]
[1754211226352,112.68,161.37,161.36,9.608]
[1754211226745,116.03,161.37,161.36,9.608]
[1754211227050,116.03,161.37,161.36,3.41]
[1754211228356,116.03,161.37,161.36,9.608]
[1754211228952,3.35,161.4,161.39,6.1969]
[1754211229158,112.68,161.4,161.39,9.6069]
[1754211229652,116.03,161.4,161.39,9.6069]
[1754211230154,3.35,161.4,161.39,9.6069]
[1754211235456,3.35,161.41,161.4,6.1963]
[1754211235657,3.35,161.41,161.37,7.04538656]
[1754211235957,116.05,161.42,161.37,7.04538656]
[1754211236251,116.05,161.42,161.38,3.41]
[1754211236662,112.7,161.42,161.38,3.41]
[1754211236960,3.35,161.41,161.38,3.41]
[1754211237155,3.35,161.41,161.39,6.1969]
[1754211237456,3.35,161.41,161.4,3.41]
[1754211239149,3.35,161.41,161.39,6.1969]
[1754211239349,3.35,161.41,161.39,9.6069]
[1754211239560,3.35,161.4,161.36,3.41]
[1754211239762,3.35,161.38,161.35,3.41]
[1754211241667,3.35,161.38,161.35,9.6084]
[1754211242172,3.35,161.38,161.35,3.41]
[1754211243170,3.35,161.38,161.35,9.6084]
[1754211243768,3.35,161.38,161.36,3.47]
[1754211248972,3.35,161.38,161.36,6.198]
[1754211249161,3.35,161.38,161.37,3.47]
[1754211249766,116.05,161.39,161.33,7.04538656]
[1754211249972,3.39,161.43,161.36,3.47]
[1754211250274,116.13,161.42,161.36,3.47]
[1754211251174,116.13,161.42,161.4,6.1964]
[1754211251373,3.39,161.41,161.4,6.1964]
[1754211252074,3.39,161.41,161.4,9.6664]
[1754211254477,112.74,161.42,161.4,9.6664]
[1754211254672,116.13,161.42,161.41,9.6661]
[1754211255180,116.13,161.42,161.41,3.47]
[1754211257479,116.13,161.42,161.41,9.6661]
[1754211258474,112.74,161.42,161.41,3.47]
[1754211258779,116.13,161.42,161.41,3.47]
[1754211259779,3.39,161.41,161.4,6.1964]
[1754211260480,3.39,161.41,161.4,9.6664]
[1754211261283,3.39,161.41,161.4,6.1964]
[1754211261574,3.39,161.41,161.4,9.6664]
[1754211265080,3.39,161.41,161.4,6.1964]
[1754211265784,112.74,161.42,161.41,6.1961]
[1754211265978,112.74,161.42,161.41,9.6661]
[1754211266284,116.13,161.42,161.41,9.6661]
[1754211267480,116.13,161.42,161.41,3.47]
[1754211270288,116.13,161.42,161.41,9.6661]
[1754211277194,3.39,161.42,161.41,9.6661]
[1754211277395,116.05,161.42,161.41,9.6661]
[1754211287001,3.5,161.41,161.4,3.36]
[1754211288301,3.5,161.41,161.4,9.5565]
[1754211289011,112.66,161.42,161.41,6.1961]
[1754211289209,116.16,161.42,161.41,9.5561]
[1754211307124,4.50488225,161.45,161.43,6.1951]
[1754211307327,112.62,161.44,161.43,3.25]
[1754211307721,112.62,161.44,161.43,9.4453]
[1754211311129,3.52,161.46,161.43,3.25]
[1754211311333,116.14,161.46,161.45,9.4446]
[1754211311533,112.62,161.46,161.45,9.4446]
[1754211312134,116.14,161.46,161.45,9.4446]
[1754211313638,3.52,161.46,161.45,9.4446]
[1754211314736,3.52,161.46,161.45,6.1946]
[1754211314933,3.52,161.46,161.45,9.4446]
[1754211317036,3.52,161.46,161.44,3.25]
[1754211317634,3.52,161.46,161.45,3.25]
[1754211317835,3.52,161.46,161.45,9.4446]
[1754211320638,3.52,161.47,161.46,6.1939]
[1754211321337,3.52,161.47,161.46,9.4439]
[1754211331442,116.1,161.48,161.47,9.4438]
[1754211334849,116.1,161.48,161.47,6.1938]
[1754211335049,116.1,161.48,161.47,9.5738]
[1754211335648,116.1,161.48,161.47,6.1938]
[1754211335846,3.17,161.47,161.41,3.38]
[1754211336054,3.17,161.42,161.41,3.38]
[1754211336240,115.73,161.42,161.41,3.38]
[1754211337349,115.73,161.42,161.41,9.5761]
[1754211347368,112.56,161.42,161.41,9.5761]
[1754211347563,3.17,161.45,161.44,9.5749]
[1754211347768,115.75,161.45,161.44,9.5749]
[1754211349473,3.17,161.47,161.44,3.38]
[1754211349676,112.58,161.46,161.44,3.38]
[1754211349876,3.17,161.45,161.44,3.38]
[1754211350069,3.17,161.45,161.42,4.50488225]
[1754211350368,3.17,161.44,161.43,6.1953]
[1754211350569,3.17,161.44,161.43,9.5753]
[1754211351771,112.58,161.46,161.45,6.1946]
[1754211351971,112.58,161.46,161.45,9.5746]
[1754211352378,115.75,161.46,161.45,9.5746]
[1754211354383,3.17,161.45,161.42,3.38]
[1754211354579,3.17,161.43,161.42,3.38]
[1754211355083,3.17,161.43,161.42,9.5757]
[1754211357984,115.75,161.44,161.43,9.5753]
[1754211358182,112.58,161.44,161.43,9.5753]
[1754211358383,112.58,161.44,161.43,14.08018225]
[1754211358685,115.73,161.46,161.44,6.1948]
[1754211358881,115.73,161.46,161.45,3.38]
[1754211359880,115.73,161.46,161.45,13.79453998]
[1754211360784,121.48794336,161.46,161.45,3.38]
[1754211360986,3.17,161.45,161.42,4.50488225]
[1754211361188,8.92794336,161.44,161.42,4.50488225]
[1754211361382,5.75794336,161.43,161.42,4.50488225]
[1754211361887,16.16299689,161.43,161.42,4.50488225]
[1754211362282,16.16299689,161.43,161.42,10.70058225]
[1754211362888,5.75794336,161.43,161.42,13.95058225]
[1754211366891,5.75794336,161.43,161.42,4.50488225]
[1754211367096,8.95794336,161.43,161.42,4.50488225]
[1754211368201,8.95794336,161.43,161.42,10.70058225]
[1754211368996,8.95794336,161.43,161.42,11.91058225]
[1754211371198,19.35687108,161.43,161.42,4.50488225]
[1754211372097,8.95794336,161.43,161.42,4.50488225]
[1754211372308,8.95794336,161.43,161.42,10.70058225]
[1754211376099,15.89105202,161.43,161.42,10.70058225]
[1754211376297,9.718e-05,161.43,161.42,10.70058225]
[1754211376497,10.13310866,161.44,161.43,6.1953]
[1754211376697,10.13310866,161.44,161.42,4.50488225]
[1754211377094,3.2,161.44,161.42,4.50488225]
[1754211377700,6.93310866,161.49,161.43,3.2]
[1754211378003,6.93310866,161.48,161.47,4.50488225]
[1754211378204,10.39966299,161.51,161.47,4.50488225]
[1754211378400,10.39966299,161.51,161.46,4.50488225]
[1754211378600,6.93331244,161.47,161.46,4.50488225]
[1754211379812,10.13331244,161.47,161.46,4.50488225]
[1754211380206,3.2,161.47,161.46,10.69908225]
[1754211382101,3.2,161.47,161.45,4.50488225]
[1754211382308,3.2,161.47,161.45,7.70488225]
[1754211383206,3.2,161.47,161.46,6.1942]
[1754211384307,3.2,161.47,161.46,9.3942]
[1754211385102,4.50488225,161.51,161.45,4.50488225]
[1754211385306,10.39795534,161.48,161.47,4.50488225]
[1754211385707,13.59795534,161.48,161.47,4.50488225]
[1754211386108,10.13213904,161.48,161.47,10.69868225]
[1754211387106,3.2,161.48,161.47,10.69868225]
[1754211388311,9.2021438,161.48,161.47,10.69868225]
[1754211388611,10.75069188,161.48,161.47,10.69868225]
[1754211391613,10.75069188,161.48,161.47,4.50488225]
[1754211392115,7.55069188,161.48,161.47,4.50488225]
[1754211392413,7.55069188,161.48,161.47,10.69868225]
[1754211392613,11.05069188,161.48,161.47,10.69868225]
[1754211394918,3.5,161.47,161.37,69.00708209]
[1754211395113,3.5,161.45,161.43,4.50488225]
[1754211395313,11.05069188,161.44,161.43,4.50488225]
[1754211396214,11.05069188,161.44,161.43,10.70018225]
[1754211397415,11.05069188,161.44,161.43,4.50488225]
[1754211397710,3.5,161.43,161.41,4.50488225]
[1754211397907,12.05557413,161.44,161.41,4.50488225]
[1754211397908,11.05069188,161.42,161.41,4.50488225]
[1754211399209,11.05069188,161.42,161.41,6.1961]
[1754211402517,3.5,161.41,161.38,4.50488225]
[1754211402719,3.5,161.39,161.38,4.50488225]
[1754211402919,5.04854808,161.39,161.38,4.50488225]
[1754211403620,5.04854808,161.39,161.38,6.1972]
[1754211405917,5.04854808,161.39,161.34,4.50488225]
[1754211405918,3.5,161.38,161.34,4.50488225]
[1754211406114,3.5,161.36,161.34,4.50488225]
[1754211406320,3.5,161.36,161.35,6.1984]
[1754211406519,5.04944251,161.36,161.35,6.1984]
[1754211408013,3.5,161.35,161.27,96.83698014]
[1754211408213,3.5,161.33,161.32,4.50488225]
[1754211408410,10.47317544,161.33,161.32,4.50488225]
[1754211408822,10.47317544,161.33,161.3,7.04379999]
[1754211409018,6.97317544,161.32,161.31,6.1999]
[1754211409223,10.47317544,161.32,161.31,6.1999]
[1754211412424,3.5,161.31,161.28,7.04379999]
[1754211412622,6.97317544,161.3,161.28,7.04379999]
[1754211412920,7.04379999,161.37,161.28,7.04379999]
[1754211412921,6.97317544,161.29,161.28,6.2011]
[1754211413125,10.47317544,161.29,161.28,6.2011]
[1754211413526,6.97317544,161.29,161.28,6.2011]
[1754211414124,6.97317544,161.29,161.27,7.04379999]
[1754211414324,14.79304038,161.28,161.27,7.04379999]
[1754211414526,14.79304038,161.28,161.27,13.24529999]
[1754211414726,3.5,161.29,161.27,7.04379999]
[1754211415226,7.04379999,161.36,161.31,6.1996]
[1754211415527,1.54979908,161.35,161.31,6.1996]
[1754211415730,3.5,161.33,161.31,6.1996]
[1754211416031,3.5,161.33,161.26,7.04379999]
[1754211416325,3.5,161.42,161.26,7.04379999]
[1754211416529,4.45425129,161.41,161.37,7.04379999]
[1754211416828,3.5,161.4,161.39,7.04379999]
[1754211417023,3.5,161.4,161.39,6.1969]
[1754211417928,3.5,161.4,161.39,13.24069999]
[1754211420226,3.5,161.4,161.39,7.04379999]
[1754211420632,3.5,161.4,161.39,13.24069999]
[1754211422536,3.5,161.4,161.39,7.04379999]